fUSD/lending_fUSD_20260217
["ID","MTS","AMOUNT","RATE_DAILY","PERIOD"]
[405797001,1771320643044,-451.80031656,0.00010398,2]
[405797002,1771320643054,-390.0,0.00010404,2]
[405797003,1771320643064,-500.0,0.00010508,2]
[405797004,1771320643074,-28698.0,0.00010541,2]
[405797006,1771320643083,-200.0,0.00010548,2]
[405797007,1771320643093,-500.0,0.00010548,2]
[405797008,1771320643102,-200.0,0.00010548,2]
[405797009,1771320643112,-261.0,0.00010565,2]
[405797010,1771320643121,-878.8390418,0.00010586,2]
[405797011,1771320643131,-500.0,0.00010626,2]
[405797012,1771320643140,-500.0,0.00010626,2]
[405797014,1771320643149,-500.0,0.00010626,2]
[405797015,1771320643159,-500.0,0.00010626,2]
[405797016,1771320643168,-500.0,0.00010626,2]
[405797017,1771320643177,-300.0,0.00010626,2]
[405797018,1771320643186,-166.66,0.00010679,2]
[405797019,1771320643195,-300.0,0.0001072,2]
[405797020,1771320643204,-46704.9570543,0.00010744,2]
[405797021,1771320643214,-164.61380668,0.00010779,2]
[405797022,1771320643223,-500.0,0.00010779,2]
[405797023,1771320643232,-500.0,0.00010779,2]
[405797024,1771320643241,-500.81972658,0.00010779,2]
[405797025,1771320643251,-160.37289206,0.00010779,2]
[405797026,1771320643260,-500.86147052,0.00010779,2]
[405797027,1771320643270,-500.0,0.00010779,2]
[405797029,1771320643280,-500.0,0.00010779,2]
[405797030,1771320643290,-502.12798245,0.00010779,2]
[405797031,1771320643299,-500.0,0.00010779,2]
[405797032,1771320643309,-500.0,0.00010779,2]
[405797033,1771320643319,-501.16029055,0.00010779,2]
[405797034,1771320643329,-503.06752739,0.00010779,2]
[405797035,1771320643339,-500.0,0.00010779,2]
[405797036,1771320643348,-500.0,0.00010782,2]
[405797037,1771320643360,-1600.0,0.00010806,2]
[405797038,1771320643370,-165.29,0.00010877,2]
[405797039,1771320643379,-256.0,0.00010884,2]
[405797040,1771320643389,-5300.13656816,0.000109,2]
[405797041,1771320643399,-5300.13656815,0.000109,2]
[405797042,1771320643409,-234.0,0.00010956,2]
[405797043,1771320643420,-500.0,0.00010959,2]
[405797044,1771320643430,-226.88409827,0.00010959,2]
[405797045,1771320643439,-9419.8,0.00010959,2]
[405797046,1771320643449,-166.66,0.00010959,2]
[405797047,1771320643458,-150.0,0.00010959,2]
[405797048,1771320643468,-150.0,0.00010959,2]
[405797049,1771320643477,-361.59516875,0.00010968,2]
[405797050,1771320643487,-464.75008914,0.00010999,2]
[405797051,1771320643496,-6034.81891893,0.00011,2]
[405797055,1771320643738,-85018.0,0.00011,2]
[405797056,1771320643747,-500.0,0.00011023,2]
[405797057,1771320643756,-500.0,0.00011023,2]
[405797059,1771320643766,-500.0,0.00011023,2]
[405797060,1771320643775,-180.0,0.00011023,2]
[405797061,1771320643784,-3292.0,0.00011028,2]
[405797062,1771320643793,-10421.2845472,0.00011035,2]
[405797063,1771320643802,-500.0,0.00011056,2]
[405797064,1771320643811,-166.66,0.00011068,2]
[405797065,1771320643820,-200.0,0.00011096,2]
[405797066,1771320643830,-500.0,0.00011096,2]
[405797067,1771320643839,-200.0,0.00011096,2]
[405797068,1771320643848,-8685.08379471,0.00011099,2]
[405797069,1771320643857,-8685.08379471,0.00011099,2]
[405797070,1771320643867,-8685.08379471,0.00011099,2]
[405797071,1771320643876,-823.0,0.00011115,2]
[405797072,1771320643885,-200.0,0.00011141,2]
[405797073,1771320643894,-200.0,0.00011177,2]
[405797074,1771320643903,-166.66,0.00011178,2]
[405797075,1771320643912,-898.32890406,0.00011202,2]
[405797076,1771320643921,-313.19,0.00011209,2]
[405797077,1771320643931,-8552.59,0.00011233,2]
[405797078,1771320643940,-255.16,0.00011233,2]
[405797079,1771320643950,-1709.1580296,0.00011259,2]
[405797080,1771320643959,-12215.0011504,0.00011259,2]
[405797081,1771320643968,-1059.62131,0.0001127,2]
[405797082,1771320643978,-1059.62132,0.0001127,2]
[405797083,1771320643988,-1059.62132,0.0001127,2]
[405797084,1771320643997,-1059.62132,0.0001127,2]
[405797085,1771320644007,-1059.62132,0.0001127,2]
[405797086,1771320644016,-1059.62132,0.0001127,2]
[405797087,1771320644026,-682.9721592,0.00011272,2]
[405797088,1771320644035,-166.66,0.00011288,2]
[405797089,1771320644046,-1000.0,0.00011301,2]
[405797090,1771320644055,-500.97291215,0.00011327,2]
[405797091,1771320644065,-1000.0,0.00011327,2]
[405797092,1771320644074,-502.71949542,0.00011327,2]
[405797093,1771320644083,-1000.0,0.00011327,2]
[405797094,1771320644093,-1000.0,0.00011327,2]
[405797095,1771320644102,-1000.0,0.00011327,2]
[405797096,1771320644111,-643.23767655,0.00011327,2]
[405797097,1771320644121,-500.0,0.0001133,2]
[405797098,1771320644131,-275.22486912,0.00011349,5]
[405797099,1771320644140,-165.29,0.00011395,2]
[405797101,1771320644150,-166.66,0.00011397,2]
[405797103,1771320644160,-5530.0,0.000114,3]
[405797104,1771320644169,-170.0,0.00011407,2]
[405797105,1771320644178,-736.0,0.00011418,2]
[405797106,1771320644188,-500.0,0.0001142,2]
[405797107,1771320644197,-620.0,0.0001142,2]
[405797108,1771320644207,-235.55627713,0.00011442,2]
[405797109,1771320644216,-167.24753249,0.00011442,2]
[405797110,1771320644225,-166.66,0.00011507,2]
[405797111,1771320644235,-629.17,0.00011507,2]
[405797112,1771320644245,-156.0,0.00011509,2]
[405797113,1771320644255,-381.3647048,0.00011564,2]
[405797114,1771320644264,-2725.5351629,0.00011564,2]
[405797115,1771320644277,-5258.6068453,0.00011565,2]
[405797116,1771320644286,-500.0,0.00011604,2]
[405797117,1771320644295,-241.70774661,0.00011628,2]
[405797118,1771320644305,-200.0,0.00011644,2]
[405797119,1771320644315,-500.0,0.00011644,2]
[405797120,1771320644326,-200.0,0.00011644,2]
[405797121,1771320644335,-5300.13656815,0.00011649,2]
[405797123,1771320644346,-1576.69293966,0.00011681,2]
[405797125,1771320644355,-152.3916872,0.00011681,2]
[405797126,1771320644364,-8685.08379471,0.00011683,2]
[405797127,1771320644375,-885.17558433,0.00011716,2]
[405797128,1771320644384,-151.0,0.00011726,2]
[405797129,1771320644393,-250.0,0.00011726,2]
[405797130,1771320644403,-209.40437684,0.00011726,2]
[405797131,1771320644412,-250.0,0.00011726,2]
[405797132,1771320644421,-160.0,0.00011726,2]
[405797133,1771320644431,-9552.16786547,0.00011726,2]
[405797134,1771320644440,-250.0,0.00011726,2]
[405797135,1771320644449,-1421.82630279,0.00011726,2]
[405797136,1771320644461,-250.0,0.00011726,2]
[405797137,1771320644470,-250.0,0.00011726,2]
[405797138,1771320644479,-250.0,0.00011726,2]
[405797139,1771320644488,-250.0,0.00011726,2]
[405797140,1771320644498,-250.0,0.00011726,2]
[405797141,1771320644507,-250.0,0.00011726,2]
[405797142,1771320644517,-250.0,0.00011726,2]
[405797143,1771320644526,-302.70619241,0.00011726,2]
[405797144,1771320644536,-250.0,0.00011726,2]
[405797145,1771320644545,-250.0,0.00011726,2]
[405797146,1771320644555,-250.0,0.00011726,2]
[405797147,1771320644564,-279.55615727,0.00011726,2]
[405797148,1771320644573,-200.0,0.00011726,2]
[405797149,1771320644583,-177.7218892,0.00011726,2]
[405797150,1771320644592,-3000.0,0.00011726,2]
[405797151,1771320644601,-3000.0,0.00011726,2]
[405797152,1771320644610,-3000.0,0.00011726,2]
[405797153,1771320644619,-3000.0,0.00011726,2]
[405797154,1771320644629,-3000.0,0.00011726,2]
[405797155,1771320644638,-3000.0,0.00011726,2]
[405797156,1771320644648,-578.20924308,0.00011726,2]
[405797157,1771320644657,-3000.0,0.00011726,2]
[405797158,1771320644667,-721.12765535,0.00011726,2]
[405797159,1771320644676,-3099.28707761,0.00011726,2]
[405797160,1771320644686,-500.0,0.00011726,2]
[405797161,1771320644696,-500.0,0.00011726,2]
[405797162,1771320644705,-151.0,0.00011726,2]
[405797163,1771320644714,-250.0,0.00011726,2]
[405797164,1771320644724,-500.0,0.00011726,2]
[405797165,1771320644733,-1000.0,0.00011726,2]
[405797166,1771320644743,-250.0,0.00011726,2]
[405797167,1771320644752,-500.0,0.00011726,2]
[405797168,1771320644761,-253.83621088,0.00011726,2]
[405797169,1771320644771,-1000.0,0.00011726,2]
[405797170,1771320644780,-500.0,0.00011726,2]
[405797171,1771320644789,-526.36214318,0.00011726,2]
[405797172,1771320644799,-500.0,0.00011726,2]
[405797173,1771320644808,-500.0,0.00011726,2]
[405797174,1771320644818,-250.0,0.00011726,2]
[405797175,1771320644828,-162.380719,0.00011726,2]
[405797176,1771320644837,-500.0,0.00011726,2]
[405797177,1771320644847,-250.0,0.00011726,2]
[405797178,1771320644856,-500.0,0.00011726,2]
[405797179,1771320644867,-250.0,0.00011726,2]
[405797180,1771320644876,-500.0,0.00011726,2]
[405797181,1771320644886,-250.0,0.00011726,2]
[405797182,1771320644896,-500.0,0.00011726,2]
[405797183,1771320644906,-250.0,0.00011726,2]
[405797184,1771320644915,-500.0,0.00011726,2]
[405797185,1771320644925,-250.0,0.00011726,2]
[405797186,1771320644935,-500.0,0.00011726,2]
[405797187,1771320644944,-500.0,0.00011726,2]
[405797188,1771320644954,-250.0,0.00011726,2]
[405797189,1771320644964,-500.0,0.00011726,2]
[405797190,1771320644974,-250.0,0.00011726,2]
[405797191,1771320644984,-500.0,0.00011726,2]
[405797192,1771320644996,-250.0,0.00011726,2]
[405797193,1771320645007,-500.0,0.00011726,2]
[405797194,1771320645017,-250.0,0.00011726,2]
[405797195,1771320645027,-500.0,0.00011726,2]
[405797196,1771320645037,-151.12957794,0.00011726,2]
[405797197,1771320645048,-250.0,0.00011726,2]
[405797198,1771320645058,-500.0,0.00011726,2]
[405797199,1771320645067,-250.0,0.00011726,2]
[405797200,1771320645077,-500.0,0.00011726,2]
[405797201,1771320645087,-250.0,0.00011726,2]
[405797202,1771320645096,-250.0,0.00011726,2]
[405797203,1771320645106,-250.0,0.00011726,2]
[405797204,1771320645115,-250.0,0.00011726,2]
[405797205,1771320645125,-250.0,0.00011726,2]
[405797206,1771320645135,-250.0,0.00011726,2]
[405797207,1771320645145,-250.0,0.00011726,2]
[405797208,1771320645154,-299.40346672,0.00011726,2]
[405797209,1771320645164,-250.0,0.00011726,2]
[405797210,1771320645173,-250.0,0.00011726,2]
[405797211,1771320645183,-250.0,0.00011726,2]
[405797212,1771320645192,-250.0,0.00011726,2]
[405797213,1771320645202,-151.0,0.00011726,2]
[405797214,1771320645211,-250.0,0.00011726,2]
[405797215,1771320645221,-151.0,0.00011726,2]
[405797216,1771320645231,-250.0,0.00011726,2]
[405797217,1771320645240,-151.0,0.00011726,2]
[405797218,1771320645250,-250.0,0.00011726,2]
[405797219,1771320645259,-151.0,0.00011726,2]
[405797220,1771320645269,-3000.0,0.00011726,2]
[405797221,1771320645283,-250.0,0.00011726,2]
[405797222,1771320645292,-3000.0,0.00011726,2]
[405797223,1771320645302,-250.0,0.00011726,2]
[405797224,1771320645311,-151.0,0.00011726,2]
[405797225,1771320645323,-1070.81608438,0.00011726,2]
[405797226,1771320645332,-151.0,0.00011726,2]
[405797227,1771320645341,-151.0,0.00011726,2]
[405797228,1771320645353,-261.90795033,0.00011726,2]
[405797229,1771320645362,-693.3919763,0.00011726,2]
[405797230,1771320645372,-878.8390418,0.00011734,2]
[405797231,1771320645382,-337.87,0.00011745,2]
[405797232,1771320645392,-9905.5980765,0.00011781,2]
[405797233,1771320645401,-151.0,0.00011781,2]
[405797234,1771320645412,-719.04747942,0.00011781,2]
[405797235,1771320645421,-5530.0,0.000118,5]
[405797236,1771320645431,-10272.10520533,0.00011836,2]
[405797237,1771320645440,-151.0,0.00011836,2]
[405797238,1771320645449,-745.65223616,0.00011836,2]
[405797239,1771320645458,-1500.0,0.00011875,2]
[405797240,1771320645468,-1500.0,0.00011875,2]
[405797241,1771320645477,-1500.0,0.00011875,2]
[405797242,1771320645487,-1500.0,0.00011875,2]
[405797243,1771320645497,-500.0,0.00011878,2]
[405797244,1771320645506,-1600.0,0.00011887,2]
[405797245,1771320645515,-2525.36664557,0.00011891,2]
[405797246,1771320645526,-151.0,0.00011891,2]
[405797247,1771320645537,-773.2413689,0.00011891,2]
[405797248,1771320645547,-165.29,0.00011913,2]
[405797249,1771320645557,-151.0,0.00011946,2]
[405797250,1771320645567,-801.85129955,0.00011946,2]
[405797251,1771320645579,-151.0,0.00012001,2]
[405797252,1771320645590,-831.51979763,0.00012001,2]
[405797253,1771320645600,-1173.3537875,0.0001204,2]
[405797254,1771320645610,-30336.8,0.00012055,2]
[405797255,1771320645619,-151.0,0.00012055,2]
[405797256,1771320645628,-151.0,0.00012056,2]
[405797257,1771320645637,-862.28603014,0.00012056,2]
[405797258,1771320645646,-151.0,0.00012111,2]
[405797259,1771320645655,-894.19061326,0.00012111,2]
[405797260,1771320645665,-4609.0,0.00012131,2]
[405797261,1771320645674,-464.75008909,0.00012149,2]
[405797262,1771320645683,-325.66480715,0.00012152,2]
[405797263,1771320645692,-151.0,0.00012166,2]
[405797264,1771320645702,-927.27566595,0.00012166,2]
[405797265,1771320645711,-200.0,0.00012192,2]
[405797266,1771320645721,-500.0,0.00012192,2]
[405797267,1771320645731,-200.0,0.00012192,2]
[405797268,1771320645741,-151.0,0.00012221,2]
[405797269,1771320645750,-961.58486559,0.00012221,2]
[405797270,1771320645759,-2658.558404,0.00012226,2]
[405797271,1771320645769,-721.0,0.00012227,2]
[405797272,1771320645778,-217.15233878,0.00012274,2]
[405797273,1771320645788,-200.0,0.00012274,2]
[405797274,1771320645797,-151.0,0.00012276,2]
[405797275,1771320645807,-997.16350561,0.00012276,2]
[405797276,1771320645818,-1000.0,0.00012329,2]
[405797277,1771320645831,-151.0,0.00012331,2]
[405797278,1771320645841,-6216.01993,0.00012361,2]
[405797279,1771320645851,-151.0,0.00012386,2]
[405797280,1771320645861,-1799.80965345,0.00012423,2]
[405797281,1771320645871,-2000.0,0.00012423,2]
[405797282,1771320645880,-2000.0,0.00012423,2]
[405797285,1771320645890,-368.72151799,0.00012423,2]
[405797287,1771320645900,-165.29,0.00012431,2]
[405797289,1771320645910,-151.0,0.00012441,2]
[405797291,1771320645919,-267.05598539,0.00012496,2]
[405797293,1771320645930,-313.19,0.00012514,2]
[405797294,1771320645939,-1252.0,0.00012559,2]
[405797295,1771320645949,-361.59516871,0.00012701,2]
[405797296,1771320645960,-8685.08379471,0.00012719,2]
[405797297,1771320645970,-201.41552809,0.0001274,2]
[405797298,1771320645980,-503.55960548,0.0001274,2]
[405797299,1771320645990,-201.77822118,0.0001274,2]
[405797300,1771320646001,-297.18074641,0.00012822,2]
[405797301,1771320646010,-356.492413,0.00012869,2]
[405797302,1771320646020,-878.8390418,0.00012881,2]
[405797303,1771320646030,-5300.13656815,0.00012899,2]
[405797304,1771320646041,-70181.97252511,0.000129,2]
[405797305,1771320646135,-1600.0,0.00012968,2]
[405797306,1771320646145,-151.0,0.00012968,2]
[405797307,1771320646155,-2500.0,0.00012971,2]
[405797308,1771320646166,-502.39964348,0.00012971,2]
[405797309,1771320646175,-160.32510575,0.00013095,2]
[405797310,1771320646186,-168.3888056,0.00013095,2]
[405797311,1771320646197,-464.75008909,0.00013299,2]
[405797312,1771320646207,-2811.86,0.000133,2]
[405797314,1771320646218,-239.226,0.000133,2]
[405797315,1771320646227,-6453.0,0.00013344,2]
[405797316,1771320646235,-3240.0,0.00013425,2]
[405797317,1771320646244,-3000.0,0.00013519,2]
[405797318,1771320646253,-500.0,0.00013698,2]
[405797319,1771320646262,-500.0,0.00013698,2]
[405797320,1771320646271,-500.0,0.00013698,2]
[405797321,1771320646285,-500.0,0.00013698,2]
[405797322,1771320646295,-500.0,0.00013698,2]
[405797323,1771320646304,-503.24510855,0.00013698,2]
[405797324,1771320646315,-500.0,0.00013698,2]
[405797325,1771320646324,-500.0,0.00013698,2]
[405797326,1771320646333,-500.0,0.00013698,2]
[405797327,1771320646341,-500.0,0.00013698,2]
[405797328,1771320646351,-500.0,0.00013698,2]
[405797330,1771320646360,-500.0,0.00013698,2]
[405797331,1771320646370,-500.0,0.00013698,2]
[405797333,1771320646379,-500.0,0.00013698,2]
[405797335,1771320646387,-500.0,0.00013698,2]
[405797336,1771320646396,-500.0,0.00013698,2]
[405797337,1771320646405,-500.0,0.00013698,2]
[405797338,1771320646414,-500.0,0.00013698,2]
[405797339,1771320646424,-500.0,0.00013698,2]
[405797341,1771320646432,-500.0,0.00013698,2]
[405797342,1771320646441,-500.0,0.00013698,2]
[405797343,1771320646451,-500.0,0.00013698,2]
[405797344,1771320646460,-500.0,0.00013698,2]
[405797345,1771320646469,-500.0,0.00013698,2]
[405797346,1771320646479,-500.0,0.00013698,2]
[405797347,1771320646489,-205.75338066,0.00013698,2]
[405797348,1771320646498,-500.0,0.00013698,2]
[405797349,1771320646507,-500.0,0.00013698,2]
[405797350,1771320646517,-500.0,0.00013698,2]
[405797351,1771320646526,-500.0,0.00013698,2]
[405797352,1771320646535,-500.0,0.00013698,2]
[405797353,1771320646545,-500.0,0.00013698,2]
[405797354,1771320646554,-500.0,0.00013698,2]
[405797355,1771320646563,-500.0,0.00013698,2]
[405797356,1771320646572,-500.0,0.00013698,2]
[405797357,1771320646581,-500.0,0.00013698,2]
[405797358,1771320646594,-391.46615766,0.00013698,2]
[405797359,1771320646607,-699.91,0.00013698,2]
[405797360,1771320646616,-500.0,0.00013698,2]
[405797361,1771320646625,-699.91,0.00013698,2]
[405797362,1771320646635,-500.0,0.00013698,2]
[405797363,1771320646644,-400.27334963,0.00013698,2]
[405797364,1771320646653,-699.91,0.00013698,2]
[405797365,1771320646663,-699.91,0.00013698,2]
[405797366,1771320646673,-699.91,0.00013698,2]
[405797367,1771320646683,-699.91,0.00013698,2]
[405797368,1771320646692,-699.91,0.00013698,2]
[405797369,1771320646701,-699.91,0.00013698,2]
[405797370,1771320646711,-699.91,0.00013698,2]
[405797371,1771320646720,-699.91,0.00013698,2]
[405797372,1771320646729,-699.91,0.00013698,2]
[405797373,1771320646739,-699.91,0.00013698,2]
[405797374,1771320646749,-699.91,0.00013698,2]
[405797375,1771320646758,-699.91,0.00013698,2]
[405797376,1771320646767,-699.91,0.00013698,2]
[405797377,1771320646776,-699.91,0.00013698,2]
[405797378,1771320646787,-500.0,0.00013698,2]
[405797379,1771320646796,-500.0,0.00013698,2]
[405797380,1771320646805,-500.0,0.00013698,2]
[405797381,1771320646814,-500.0,0.00013698,2]
[405797382,1771320646823,-500.0,0.00013698,2]
[405797383,1771320646832,-500.0,0.00013698,2]
[405797384,1771320646841,-500.0,0.00013698,2]
[405797385,1771320646851,-500.0,0.00013698,2]
[405797386,1771320646860,-500.0,0.00013698,2]
[405797387,1771320646869,-500.0,0.00013698,2]
[405797388,1771320646879,-500.0,0.00013698,2]
[405797389,1771320646890,-500.0,0.00013698,2]
[405797390,1771320646900,-500.0,0.00013698,2]
[405797391,1771320646909,-500.0,0.00013698,2]
[405797392,1771320646919,-500.0,0.00013698,2]
[405797393,1771320646929,-500.0,0.00013698,2]
[405797394,1771320646938,-500.0,0.00013698,2]
[405797395,1771320646947,-500.0,0.00013698,2]
[405797396,1771320646957,-500.0,0.00013698,2]
[405797397,1771320646966,-500.0,0.00013698,2]
[405797398,1771320646975,-500.0,0.00013698,2]
[405797399,1771320646985,-500.0,0.00013698,2]
[405797400,1771320646994,-500.0,0.00013698,2]
[405797401,1771320647003,-500.0,0.00013698,2]
[405797402,1771320647013,-500.0,0.00013698,2]
[405797403,1771320647022,-500.0,0.00013698,2]
[405797404,1771320647031,-500.0,0.00013698,2]
[405797405,1771320647041,-500.0,0.00013698,2]
[405797406,1771320647051,-500.0,0.00013698,2]
[405797407,1771320647061,-500.0,0.00013698,2]
[405797408,1771320647071,-500.0,0.00013698,2]
[405797409,1771320647083,-500.0,0.00013698,2]
[405797410,1771320647094,-500.0,0.00013698,2]
[405797411,1771320647103,-500.0,0.00013698,2]
[405797412,1771320647112,-500.0,0.00013698,2]
[405797413,1771320647121,-522.2154278,0.00013698,2]
[405797414,1771320647131,-1015.72,0.00013698,2]
[405797415,1771320647140,-1015.72,0.00013698,2]
[405797416,1771320647150,-1015.72,0.00013698,2]
[405797417,1771320647159,-1015.72,0.00013698,2]
[405797418,1771320647170,-1015.72,0.00013698,2]
[405797419,1771320647180,-1015.72,0.00013698,2]
[405797420,1771320647190,-1015.72,0.00013698,2]
[405797421,1771320647200,-1015.72,0.00013698,2]
[405797422,1771320647210,-1015.72,0.00013698,2]
[405797423,1771320647219,-1015.72,0.00013698,2]
[405797424,1771320647230,-1015.72,0.00013698,2]
[405797425,1771320647240,-1015.72,0.00013698,2]
[405797426,1771320647251,-1015.72,0.00013698,2]
[405797427,1771320647260,-1015.72,0.00013698,2]
[405797428,1771320647270,-1015.72,0.00013698,2]
[405797429,1771320647284,-1015.72,0.00013698,2]
[405797430,1771320647293,-456.05800986,0.00013698,2]
[405797431,1771320647303,-500.0,0.00013698,2]
[405797432,1771320647313,-500.0,0.00013698,2]
[405797433,1771320647323,-500.0,0.00013698,2]
[405797434,1771320647332,-500.0,0.00013698,2]
[405797435,1771320647341,-500.0,0.00013698,2]
[405797436,1771320647351,-500.0,0.00013698,2]
[405797437,1771320647361,-500.0,0.00013698,2]
[405797438,1771320647370,-500.0,0.00013698,2]
[405797439,1771320647379,-500.0,0.00013698,2]
[405797440,1771320647389,-500.0,0.00013698,2]
[405797441,1771320647398,-430.55674509,0.00013698,2]
[405797442,1771320647407,-500.0,0.00013698,2]
[405797443,1771320647416,-500.0,0.00013698,2]
[405797444,1771320647425,-500.0,0.00013698,2]
[405797445,1771320647434,-500.0,0.00013698,2]
[405797446,1771320647443,-500.0,0.00013698,2]
[405797447,1771320647453,-500.0,0.00013698,2]
[405797448,1771320647462,-500.0,0.00013698,2]
[405797449,1771320647471,-500.0,0.00013698,2]
[405797450,1771320647480,-500.0,0.00013698,2]
[405797451,1771320647490,-500.0,0.00013698,2]
[405797452,1771320647500,-500.0,0.00013698,2]
[405797453,1771320647510,-500.0,0.00013698,2]
[405797454,1771320647520,-500.0,0.00013698,2]
[405797455,1771320647530,-500.0,0.00013698,2]
[405797456,1771320647539,-500.0,0.00013698,2]
[405797457,1771320647548,-500.0,0.00013698,2]
[405797458,1771320647557,-535.55684817,0.00013698,2]
[405797459,1771320647567,-506.79858148,0.00013698,2]
[405797460,1771320647576,-500.0,0.00013698,2]
[405797461,1771320647586,-500.0,0.00013698,2]
[405797462,1771320647597,-500.0,0.00013698,2]
[405797463,1771320647608,-639.90682726,0.00013698,2]
[405797464,1771320647618,-915.21,0.00013698,2]
[405797465,1771320647627,-915.21,0.00013698,2]
[405797466,1771320647637,-915.21,0.00013698,2]
[405797467,1771320647646,-915.21,0.00013698,2]
[405797468,1771320647656,-915.21,0.00013698,2]
[405797469,1771320647665,-915.21,0.00013698,2]
[405797470,1771320647674,-915.21,0.00013698,2]
[405797471,1771320647684,-915.21,0.00013698,2]
[405797472,1771320647693,-915.21,0.00013698,2]
[405797473,1771320647702,-915.21,0.00013698,2]
[405797474,1771320647711,-915.21,0.00013698,2]
[405797475,1771320647719,-915.21,0.00013698,2]
[405797476,1771320647728,-915.21,0.00013698,2]
[405797477,1771320647737,-915.21,0.00013698,2]
[405797478,1771320647746,-915.21,0.00013698,2]
[405797479,1771320647755,-915.21,0.00013698,2]
[405797480,1771320647764,-500.0,0.00013698,2]
[405797481,1771320647773,-500.0,0.00013698,2]
[405797482,1771320647783,-500.0,0.00013698,2]
[405797483,1771320647792,-307.44205355,0.00013698,2]
[405797484,1771320647801,-500.0,0.00013698,2]
[405797485,1771320647810,-500.0,0.00013698,2]
[405797486,1771320647819,-500.0,0.00013698,2]
[405797487,1771320647830,-500.0,0.00013698,2]
[405797488,1771320647840,-500.0,0.00013698,2]
[405797489,1771320647848,-500.0,0.00013698,2]
[405797490,1771320647858,-500.0,0.00013698,2]
[405797491,1771320647867,-500.0,0.00013698,2]
[405797492,1771320647876,-500.0,0.00013698,2]
[405797493,1771320647885,-500.0,0.00013698,2]
[405797494,1771320647896,-500.0,0.00013698,2]
[405797495,1771320647906,-500.0,0.00013698,2]
[405797496,1771320647915,-500.0,0.00013698,2]
[405797497,1771320647924,-500.0,0.00013698,2]
[405797498,1771320647934,-500.0,0.00013698,2]
[405797499,1771320647943,-286.9609652,0.00013698,2]
[405797500,1771320647953,-349.69131006,0.00013698,2]
[405797501,1771320647962,-500.0,0.00013698,2]
[405797502,1771320647972,-500.0,0.00013698,2]
[405797503,1771320647981,-500.0,0.00013698,2]
[405797504,1771320647990,-500.0,0.00013698,2]
[405797505,1771320648000,-529.40507312,0.00013698,2]
[405797506,1771320648010,-500.0,0.00013698,2]
[405797507,1771320648019,-500.0,0.00013698,2]
[405797508,1771320648030,-500.0,0.00013698,2]
[405797509,1771320648040,-500.0,0.00013698,2]
[405797510,1771320648049,-500.0,0.00013698,2]
[405797511,1771320648058,-500.0,0.00013698,2]
[405797512,1771320648068,-500.0,0.00013698,2]
[405797513,1771320648077,-500.0,0.00013698,2]
[405797514,1771320648087,-500.0,0.00013698,2]
[405797515,1771320648096,-500.0,0.00013698,2]
[405797516,1771320648105,-500.0,0.00013698,2]
[405797517,1771320648115,-500.0,0.00013698,2]
[405797518,1771320648124,-500.0,0.00013698,2]
[405797519,1771320648135,-596.80603134,0.00013698,2]
[405797520,1771320648146,-153.093174,0.00013698,2]
[405797521,1771320648156,-500.0,0.00013698,2]
[405797522,1771320648165,-500.0,0.00013698,2]